Cogmind - Beta 15 @@@ ROGUE MODE // 2025.05.26 @ 09:26:43 Player: Niko Result: Destroyed by S-27 Virus with Autogun Performance ------------- Evolutions (3) 1500 Regions Visited (4) 800 Robots Destroyed (34) 170 Value Destroyed (1052) 1052 Prototype IDs (1) 20 Alien Tech Used (0) 0 Bonus (0) 0 TOTAL SCORE: 3542 Bonus ------- None Cogmind --------- Core Integrity 0/700 Matter 189/300 Energy 94/100 System Corruption 5% Temperature Cool (0) Movement Core (50) Location -7/Factory Parts ------- > --- POWER (1) -------- (None) > --- PROPULSION (4) --- (None) > --- UTILITY (5) ------ Terrain Scan Processor System Shield > --- WEAPON (3) ------- (None) > --- INVENTORY (5) ---- Improved Cryofiber Web Hacking Suite Datajack Peak State ------------ > --- POWER ------------ Light Ion Engine > --- PROPULSION ------- Flight Unit Cesium-ion Thruster Surge Thruster > --- UTILITY ---------- Terrain Scanner Terrain Scan Processor Seismic Detector Improved Targeting Computer System Shield > --- WEAPON ----------- Flail Powered Hammer > --- INVENTORY -------- Improved Cryofiber Web Field Laser Mini Grenade Launcher Datajack [Rating: 24] Favorites ----------- Power Improved Ion Engine Engine Improved Ion Engine Propulsion Compact Wheel Wheel Compact Wheel Hover Unit Gravmag System Flight Unit Surge Thruster Utility Improved Targeting Computer Device Terrain Scanner Storage Huge Storage Unit Processor Improved Targeting Computer Hackware System Shield Weapon Assault Rifle Energy Gun Small Laser Energy Cannon Beam Cannon Ballistic Gun Assault Rifle Launcher Mini Grenade Launcher Special Weapon Remote Datajack Impact Weapon Powered Hammer Slashing Weapon Mining Claw Special Melee Weapon Datajack Build | -11 -10 -9 -8 -7 ------- Run | Yrd Mat Mat Mat Fac Slots Evolved 6 | . . 2 2 2 Power . | . . . . . Propulsion 2 | . . . . 2 Utility 3 | . . 2 1 . Weapon 1 | . . . 1 . Parts Attached 45 | 6 5 4 17 13 Power 5 | 1 1 . 2 1 Engine 5 | 1 1 . 2 1 Core . | . . . . . Reactor . | . . . . . Propulsion 12 | 2 1 1 5 3 Treads . | . . . . . Leg . | . . . . . Wheel 5 | 2 1 1 1 . Hover 3 | . . . . 3 Flight 4 | . . . 4 . Utility 11 | 1 2 2 4 2 Device 3 | . . 1 2 . Storage 3 | 1 1 . . 1 Processor 3 | . 1 1 1 . Hackware 2 | . . . 1 1 Protection . | . . . . . Artifact . | . . . . . Weapon 17 | 2 1 1 6 7 Energy Gun 2 | 1 . . . 1 Energy Cannon 1 | . . . 1 . Ballistic Gun 3 | 1 1 1 . . Ballistic Cannon . | . . . . . Launcher 2 | . . . . 2 Special Weapon 3 | . . . 2 1 Impact Weapon 4 | . . . 1 3 Slashing Weapon 1 | . . . 1 . Piercing Weapon . | . . . . . Special Melee Weapon 1 | . . . 1 . Unidentified Prototypes 1 | . . . . 1 Parts Lost 33 | . 2 2 14 15 Power 4 | . . 1 1 2 Propulsion 12 | . 2 1 3 6 Utility 6 | . . . 3 3 Weapon 11 | . . . 7 4 Highest Loss Streak 7 | . 1 2 7 5 To Critical Strikes . | . . . . . Average Backups 12 | 2 13 19 20 4 Power 2 | . 2 3 2 . Propulsion 2 | . 1 2 6 . Utility 5 | . 6 9 8 1 Weapon 1 | . 1 3 1 1 Tool/Special . | . . . . . Unused Backups 19 | . 1 . 15 3 Power 2 | . 1 . 1 . Propulsion 6 | . . . 6 . Utility 10 | . . . 8 2 Weapon . | . . . . . Tool/Special 1 | . . . . 1 Average Slot Usage (%) 80 | . 95 95 76 57 Engine 8 | . 14 9 4 4 Wheel 14 | . 27 20 9 . Flight 3 | . . . 3 8 Device 5 | . . 10 8 6 Storage 8 | . 14 11 7 2 Processor 15 | . 13 21 21 12 Hackware 2 | . . . . 6 Energy Gun 2 | . 5 . . 1 Ballistic Gun 11 | . 19 21 9 . Impact Weapon 2 | . . . . 7 Slashing Weapon 1 | . . . 7 . Peak Build Rating 24 | 6 12 14 18 24 Average Rating 13 | 2 10 13 14 18 On Entrance 8 | . 6 9 12 15 Naked Turns . | . . . . . Heaviest Build 95 | 13 91 92 95 34 Greatest Support 32 | 26 26 32 32 18 Greatest Overweight (x) 29 | 1 5 5 29 6 Average Overweight (x) 1 | . 1 2 1 . Largest Inventory Capacity 25 | 8 25 25 25 15 Average Capacity 16 | 6 18 25 21 7 Most Carried 25 | 5 25 24 25 7 Average Carried 12 | 2 13 19 20 4 Final Capacity 25 | 8 25 25 5 5 Final Carried 25 | 1 25 24 5 3 Class Distribution -------------------- 83% | Mutant 8% | Scavenger-Mutant 4% | Sprinter 3% | Scavenger-Sprinter Dominant Class ---------------- Mutant | -10/Materials Mutant | -9/Materials Mutant | -8/Materials Mutant | -7/Factory Resources | -11 -10 -9 -8 -7 ----------- Run | Yrd Mat Mat Mat Fac Matter Collected 897 | 231 278 38 228 122 Remotely . | . . . . . Salvage Created 714 | . 357 38 104 215 Parts 55 | . 34 6 3 12 Haulers Intercepted 1 | . . . . 1 Recyclers Shooed . | . . . . . Parts Field Recycled . | . . . . . Retrieved Matter . | . . . . . Parts Self-Destructed . | . . . . . Prevented . | . . . . . Kills | -11 -10 -9 -8 -7 ------- Run | Yrd Mat Mat Mat Fac Combat Hostiles Destroyed 25 | . 12 3 3 7 Melee 1 | . . . . 1 Guns 15 | . 11 3 . 1 Cannons 3 | . . . 3 . AOE 4 | . 1 . . 3 Classes Destroyed 11 | . 6 . 2 3 Worker 1 | . . . . 1 Builder 2 | . 2 . . . Tunneler 2 | . 2 . . . Hauler 1 | . . . . 1 Operator 2 | . 1 . . 1 Watcher 1 | . 1 . . . Swarmer 12 | . 6 3 . 3 Cutter 1 | . . . 1 . Grunt 8 | . 6 . 1 1 Hunter 2 | . . . 1 1 Programmer 2 | . . . . 2 Best Kill Streak 5 | . 5 3 2 4 Combat Bots Only 3 | . 3 3 2 3 Max Kills in Single Turn 4 | . 4 1 1 2 Gunslinging . | . . . . . Exploded 2 | . 1 . . 2 Melee 1 | . . . . 1 Uniques/NPCs Destroyed . | . . . . . Combat | -11 -10 -9 -8 -7 -------- Run | Yrd Mat Mat Mat Fac Hostile Shots Fired 273 | . 61 22 76 114 Missed 72 | . 16 3 21 32 Hits 201 | . 45 19 55 82 Melee 13 | . . . 10 3 Projectile 188 | . 45 19 45 79 AOE 1 | . . . 1 . Critical Strikes 2 | . . . . 2 Damage Taken 3434 | . 539 163 1031 1701 Core 1213 | . 101 66 336 710 Absorbed by Shields . | . . . . . Regen/Repaired (Parts) 33 | . 33 . . . Core Remaining (%) 70 | 100 59 83 38 . Volleys Fired 85 | . 37 7 31 10 Largest 2 | . 2 2 2 2 Hottest 160 | . 60 40 160 93 Shots Fired 147 | . 66 14 49 18 Gun 111 | . 66 14 23 8 Cannon 22 | . . . 22 . Launcher 10 | . . . . 10 Special 4 | . . . 4 . Kinetic 85 | . 48 14 23 . Thermal 52 | . 18 . 26 8 Explosive 10 | . . . . 10 Electromagnetic . | . . . . . Robot Hit Streak 9 | . 9 2 9 4 Robot Miss Streak 5 | . 2 2 5 4 Penetration Max . | . . . . . Secondary Targets 1 | . . 1 . . Max Gunslinging Chain 1 | . . 1 . . Shots Hit Robots 105 | . 43 7 32 23 Core Hits 47 | . 23 3 7 14 Critical Kills . | . . . . . Critical Parts Destroyed 1 | . . . . 1 Critical Strikes 1 | . . . . 1 Smash 1 | . . . . 1 Melee Attacks 24 | . . . 2 22 Impact 24 | . . . 2 22 Slashing . | . . . . . Piercing . | . . . . . Sneak Attacks . | . . . . . Combat Hostiles . | . . . . . Follow-up Attacks 2 | . . . . 2 Damage Inflicted 2808 | . 1153 101 439 1115 Guns 844 | . 530 87 146 81 Cannons 265 | . . . 265 . Explosions 995 | . 623 . . 372 Melee 655 | . . . . 655 Ramming 21 | . . 14 . 7 Kinetic 611 | . 378 87 146 . Thermal 1213 | . 775 . 293 145 Explosive 308 | . . . . 308 Electromagnetic . | . . . . . Impact 655 | . . . . 655 Slashing . | . . . . . Piercing . | . . . . . Highest Corruption 5 | . 1 . . 5 Average Corruption 2 | . 1 . . 3 Corruption Purged . | . . . . . Corruption Blocked . | . . . . . Effects 13 | . 2 . . 11 Message Errors 4 | . . . . 4 Matter Fused 2 | . 1 . . 1 Heat Flow Errors 2 | . . . . 2 Energy Discharges 2 | . 1 . . 1 Data Loss (minor) 2 | . . . . 2 Data Loss (major) 1 | . . . . 1 Overload Shots . | . . . . . Overflow Damage 371 | . 101 . . 270 Projectiles . | . . . . . Explosions 190 | . 101 . . 89 Melee 181 | . . . . 181 Knockbacks 6 | . . . . 6 Impact 6 | . . . . 6 Kinetic . | . . . . . Secondary . | . . . . . Self-Inflicted Damage 462 | . 33 6 . 423 Shots 11 | . 1 . . 10 Rammed 4 | . . 2 . 2 Targets Rammed 4 | . . 2 . 2 Kicked . | . . . . . Crushed . | . . . . . Highest Temperature 302 | . 54 . 158 302 Average Temperature 62 | . 24 . 83 87 Received Heat Transfer 609 | . 222 . 207 180 Siege Activations . | . . . . . Martial Activations . | . . . . . Shielding Activations . | . . . . . Robots Disrupted . | . . . . . Combat Hostiles . | . . . . . Robots Corrupted 3 | . . . . 3 Combat Hostiles 2 | . . . . 2 Parts Fried 4 | . . . . 4 Impact Corruptions 9 | . . . . 9 Robots Melted . | . . . . . Combat Hostiles . | . . . . . Parts Melted . | . . . . . Heat Transferred 1678 | . 800 . 630 248 Parts Sabotaged . | . . . . . Parts Stolen . | . . . . . Parts Stripped . | . . . . . Power Chain Reactions . | . . . . . Alert | -11 -10 -9 -8 -7 ------- Run | Yrd Mat Mat Mat Fac Maximum Alert Level 1 | . 1 . . 1 Low Security (%) 69 | 100 13 100 100 96 Level 1 30 | . 86 . . 3 Level 2 . | . . . . . Level 3 . | . . . . . Level 4 . | . . . . . Level 5 . | . . . . . High Security . | . . . . . Max Security . | . . . . . Peak Influence 380 | . 380 78 45 282 Initial 78 | . . 78 25 5 Average 114 | . 275 23 10 50 Influence Increases 1479 | . 630 85 171 593 Destroy 0b10 Robot/C 500 | . 240 60 60 140 Destroy 0b10 Robot/NC 45 | . 30 . . 15 Destroy Leader 124 | . 42 10 20 52 Successful Hack 5 | . 5 . . . Disable Machine 360 | . 240 15 . 105 Destroy Structure 160 | . 73 . 1 86 Lose Combat Pursuer 285 | . . . 90 195 Influence Decreases 1223 | . 445 209 219 350 Entered New Map 151 | . . 107 36 8 Time Decay 886 | . 425 102 120 239 Lost Part 186 | . 20 . 63 103 Squads Dispatched 11 | . 1 . 3 7 Investigation . | . . . . . Extermination 2 | . . . . 2 Reinforcement 6 | . 1 . 3 2 Assault . | . . . . . Garrison 3 | . . . . 3 Intercept . | . . . . . Searches Triggered . | . . . . . Construction Impeded . | . . . . . Haulers Reinforced . | . . . . . Active Scanning Responses . | . . . . . Cargo Convoy Interrupts . | . . . . . Stealth | -11 -10 -9 -8 -7 --------- Run | Yrd Mat Mat Mat Fac Distress Signals 8 | . . 1 5 2 Communications Jammed . | . . . . . Distress Signals . | . . . . . Times Spotted 75 | . 24 5 23 23 Peak Tracking Total 11 | . 4 3 11 7 Tactical Retreats 13 | . . . 5 8 Traps | -11 -10 -9 -8 -7 ------- Run | Yrd Mat Mat Mat Fac Traps Triggered 4 | . 2 . . 2 Indirectly . | . . . . . Trap Hack Attempts . | . . . . . Triggered . | . . . . . Disarmed . | . . . . . Reprogrammed . | . . . . . Reused . | . . . . . Traps Extracted . | . . . . . Installed . | . . . . . Triggered . | . . . . . Machines | -11 -10 -9 -8 -7 ---------- Run | Yrd Mat Mat Mat Fac Machines Disabled 24 | . 16 1 . 7 Max in Single Turn 16 | . 16 1 . 3 Machines Repaired . | . . . . . Machines Dismantled . | . . . . . Machines Sabotaged . | . . . . . Overloaded Fab Kills . | . . . . . Hacking | -11 -10 -9 -8 -7 --------- Run | Yrd Mat Mat Mat Fac Machines Accessed 8 | . 3 . . 5 Terminals 4 | . 2 . . 2 Fabricators 2 | . . . . 2 Repair Stations 1 | . 1 . . . Recycling Units . | . . . . . Scanalyzers . | . . . . . Garrison Access 1 | . . . . 1 Total Hacks 16 | . 7 . . 9 Successful 8 | . 5 . . 3 Failed 8 | . 2 . . 6 Catastrophic 3 | . 1 . . 2 Database Lockouts . | . . . . . Manual 7 | . 4 . . 3 Terminals 8 | . 5 . . 3 Fabricators 4 | . . . . 4 Repair Stations 2 | . 2 . . . Recycling Units . | . . . . . Scanalyzers . | . . . . . Garrison Access 2 | . . . . 2 Terminal Hacks 2 | . 2 . . . Record 1 | . 1 . . . Dispatch Records 1 | . 1 . . . Fabricator Hacks 2 | . . . . 2 Network Status 1 | . . . . 1 Build 1 | . . . . 1 Repair Station Hacks 2 | . 2 . . . Scan Component 1 | . 1 . . . Repair 1 | . 1 . . . Recycling Unit Hacks . | . . . . . Scanalyzer . | . . . . . Garrison Access Hacks 1 | . . . . 1 Unlock Access 1 | . . . . 1 Unauthorized Hacks 1 | . 1 . . . Terminals 1 | . 1 . . . Botnet 1 | . 1 . . . Fabricators . | . . . . . Repair Stations . | . . . . . Recycling Units . | . . . . . Scanalyzers . | . . . . . Garrison Access . | . . . . . Data Cores Recovered 1 | . . . . 1 Used 1 | . . . . 1 Hacking Detections 7 | . 3 . . 4 Full Trace Events . | . . . . . Feedback Events . | . . . . . Feedback Blocked . | . . . . . Robot Schematics Acquired . | . . . . . Robots Built . | . . . . . Authchips . | . . . . . Time . | . . . . . Total Robot Build Rating . | . . . . . Part Schematics Acquired . | . . . . . Parts Built 2 | . . . . 2 Authchips . | . . . . . Time 47 | . . . . 47 Total Part Build Rating 10 | . . . . 10 Parts Repaired 1 | . 1 . . . Time 26 | . 26 . . . Parts Recycled . | . . . . . Recycled Matter . | . . . . . Retrieved Matter . | . . . . . Retrieved Components . | . . . . . Parts Scanalyzed . | . . . . . Part Schematics Acquired . | . . . . . Parts Damaged . | . . . . . Bothacking | -11 -10 -9 -8 -7 ------------ Run | Yrd Mat Mat Mat Fac Used RIF Installer . | . . . . . Robots Hacked . | . . . . . Non-combat . | . . . . . Combat . | . . . . . Robot Hacks Applied . | . . . . . Relay Couplers Released . | . . . . . Fabnet Peak Effective % . | . . . . . Robots Rewired . | . . . . . Allies Hacked . | . . . . . Hacks Repelled . | . . . . . Allies | -11 -10 -9 -8 -7 -------- Run | Yrd Mat Mat Mat Fac Total Allies . | . . . . . Largest Group . | . . . . . Highest-Rated Group . | . . . . . Highest-Rated Ally . | . . . . . Total Orders . | . . . . . Ally Attacks . | . . . . . Total Damage . | . . . . . Kills . | . . . . . Allies Corrupted . | . . . . . Allies Melted . | . . . . . Intel | -11 -10 -9 -8 -7 ------- Run | Yrd Mat Mat Mat Fac Active Infowar (turns) 1403 | . . 451 540 412 Terrain 1345 | . . 451 540 354 Seismic 501 | . . . 89 412 Robot Analysis Total . | . . . . . Derelict Logs Recovered . | . . . . . Drone Launches . | . . . . . Drone Recoveries . | . . . . . Exploration | -11 -10 -9 -8 -7 ------------- Run | Yrd Mat Mat Mat Fac Turns Passed 3186 | 47 1096 456 649 938 Spaces Moved 2410 | 50 768 153 471 968 Core 252 | 31 . . 4 217 Treads . | . . . . . Legs . | . . . . . Wheels 1128 | 19 768 153 188 . Hover 124 | . . . . 124 Flight 906 | . . . 279 627 Fastest Speed 30 | 50 90 130 32 30 Average Speed 95 | 69 118 137 87 75 Slowest Speed 1500 | 100 175 175 1500 350 Overloaded Moves . | . . . . . Propulsion Burnouts . | . . . . . Robots Hopped 3 | . . . 3 . Potential Cave-ins . | . . . . . Cave-ins Triggered . | . . . . . Exploration Rate (%) 37 | 4 95 20 38 31 Regions Visited 4 Branch Regions . Pre-discovered Areas . | . . . . . Known Exits Taken . | . . . . . Unknown Exits Taken 4 | 1 1 1 1 . Scrap Searched . | . . . . . Spaces Dug 2 | . . . . 2 Terrain Destroyed 174 | . 74 . . 100 Melee 2 | . . . . 2 Projectile . | . . . . . AOE 172 | . 74 . . 98 Terrain Rammed . | . . . . . Walls Destroyed . | . . . . . Machines Disabled . | . . . . . Actions | -11 -10 -9 -8 -7 --------- Run | Yrd Mat Mat Mat Fac Total 3099 | 61 887 384 650 1117 Wait 463 | . 45 212 120 86 Move 2401 | 49 767 152 465 968 Hop 2 | . . . 2 . Pick Up 57 | 6 28 5 10 8 Fast Attach 12 | 1 2 . 1 8 Attach 37 | 5 2 5 15 10 Detach . | . . . . . Swap 3 | . 2 . 1 . Drop 13 | . 4 1 3 5 Fire 85 | . 37 7 31 10 Melee 22 | . . . 2 20 Ram 4 | . . 2 . 2 Kick . | . . . . . Crush . | . . . . . Escape Stasis . | . . . . . Rewire . | . . . . . Trap . | . . . . . Miscellaneous . | . . . . . Route ------- -11/Scrapyard -10/Materials (discovered 4 exits: [*Mat x3] / [*Min]) -9/Materials -8/Materials -7/Factory (discovered 2 exits: [*Fac] / Gar) History --------- Turn | Location | Event 15 | -11/Scrapyard | Discovered new exit (range 15) 48 | -11/Scrapyard | Entered Materials 208 | -10/Materials | Repaired Wheel 276 | -10/Materials | Discovered new exit (range 12) 305 | -10/Materials | Build established: Mutant 348 | -10/Materials | Discovered new exit (range 16) 888 | -10/Materials | Discovered new exit (range 6) 970 | -10/Materials | Discovered new exit (range 7) 1144 | -10/Materials | Entered another Materials area 1144 | -9/Materials | Evolved 2 slots: Utility x2 1498 | -9/Materials | Discovered new exit (range 5) 1600 | -9/Materials | Entered another Materials area 1600 | -8/Materials | Evolved 2 slots: Utility x1, Weapon x1 2101 | -8/Materials | Lost 7 parts (2n2u3w) 2137 | -8/Materials | Core integrity fell below 50% 2171 | -8/Materials | Lost 6 parts (1p1n1u3w) 2246 | -8/Materials | Discovered new exit (range 11) 2249 | -8/Materials | Entered Factory 2249 | -7/Factory | Evolved 2 slots: Propulsion x2 2312 | -7/Factory | Fabricated Imp. Cryofiber Web (x2) 2637 | -7/Factory | Identified exit to Garrison 2658 | -7/Factory | Garrison activated, responded to threat 2692 | -7/Factory | Lost 3 parts (1p1n1u) 2872 | -7/Factory | Core integrity fell below 50% 2900 | -7/Factory | Lost 3 parts (1u2w) 3158 | -7/Factory | Core integrity fell below 20% 3165 | -7/Factory | Discovered new exit (range 15) 3187 | -7/Factory | Destroyed by S-27 Virus with Autogun Last Messages --------------- Destroyed VTOL Module. S-27 Virus destroyed. Imp. Deuterium Engine destroyed. Destroyed Imp. Deuterium Engine. Fusion Modulator explodes. K-01 Serf destroyed. Fusion Modulator explodes. Mni. Grenade Launcher destroyed. EXIT=FOUND U-05 Engineer builds a Wall. U-05 Engineer lays Concrete. U-05 Engineer builds a Wall. U-05 Engineer lays Concrete. The unstable cave ceiling collapses. U-05 Engineer builds a Wall. System corrupted: Heat flow error (+174). Cld. Airjet destroyed. U-05 Engineer lays Concrete. U-05 Engineer builds a Wall. Dropped Lrg. Storage Unit. Map ----- +----------------------------------------------------+ | ????????????????????? ????# """ # | | ????????????????????? ????# # | | ???????????????????? ????######## | | ???????????????###?# ?????######## | | ?????????+??### ##"###+??# ] | | ????????? ??# """"""""# #?# | | ????????? ?## " "# #?# """" | | ????????# ?? " "# #?# """" | | ????????# ### " "" #?# "" | | ????????# ## " " #?#" """ | | ????????# #?# " #?#T " | | ????????# #?# ] #?#" "" | | # ??????# #?# " #?# | | ?"""????# ### " #######+ # | | #""" ??# " | | #""" # ! #" | | # ] + + "" | | #""" # # " | | #""" ??# # "" " | | ?"""????# s [ "# | | # ??????# # #### """ """ " | | ????????# u """ """ " | | ????????# =% """ """ " | | ????????# ^ | | ????????#! | | ????????#@ ^ k | | ????????# ###########+######## | | ????????# #??????????????????? | | ???????? #??????????????????? | | ???????? #??????????????????? | | ???????? < #??????????????????? | | ???????? #??????????????????? | | ??????? #??????????????????? | | ???????## #??????????????????? | | ????????? #??????????????????? | | ????????? #??????????????????? | | ????????? #??????????????????? | | ????????? #??????????????????? | | ????????? #??????????????????? | | ????????? ???????????????????? | | ????????? ?????????????????????? | | ?????????????????????????????????? | | ?????????????????????????????????? | | ?????????????????????????????????? | | ?????????????????????????????????? | | ?????????????????????????????????? | | ?????????????????????????????????? | | ?????????????????????????????????? | | ?????????????????????????????????? | | ?????????????????????????????????? | +----------------------------------------------------+ Best States ------------- Heat Dissipation 34 Energy Generation 16 Energy Capacity 290 Matter Stores 300 Matter Capacity 300 Sight Range 16 Terrain Scan Range 14 Terrain Scan Density 85 Evasion (%) 64 Targeting Accuracy 12 Defensive Hacking 10 Item Schematics ----------------- None Robot Schematics ------------------ None Fabricated ------------ Imp. Cryofiber Web | x2 | -7/Factory | Preloaded Repaired ---------- Wheel | 17% | -10/Materials Alien Tech Used ----------------- None Achievements -------------- It Was An Accident, I Swear Challenges ------------ None Game ------ Seed GammaTiamatTube Manual? 0 Play Time 00:28:49 Cumulative 30.2 hours Start 2025.05.26 @ 08:53:16 End 2025.05.26 @ 09:26:43 Sessions 1 Manual Loads 0 Difficulty Rogue Special Mode None Game No. 55 Rogue 55 Adventurer 0 Explorer 0 Win Type - Total 0 Types 0/0/0/0/0/0/0/0/0/0 Lore% 22 Gallery% 27 Achievement% 28 Wizard Run 0 Options --------- Layout 1 ASCII 0 Keyboard 0 Movement Mouse Keybinds 0 Fullscreen 1 Font 24/Smallcaps Map View 50x35 Zoom Use 0% Tactical HUD 0 Map Filters NONE Filters NONE Steam 1 RUN: bf2d57d0-3631-428f-ae02-b679433805f6